[Event "Titled Tuesday Blitz February 14 Early 2023"]
[White "Dehtiarov, Roman"]
[Black "AidenRchess"]
[WhiteFideId "14186640"]
[WhiteElo "2289"]
[BlackElo "2517"]
[Result "1-0"]
[Round "08"]
[TimeControl "180+2"]
[Date "2023.02.14"]
[WhiteClock "0:01:01"]
[BlackClock "0:00:07"]

1. e4 {[%clk 0:02:57]}  c5 {[%clk 0:02:59]} 2. Nc3 {[%clk 0:02:57]}  d6 {[%clk 0:02:58]} 3. f4 {[%clk 0:02:57]}  Nc6 {[%clk 0:02:58]} 4. Nf3 {[%clk 0:02:58]}  g6 {[%clk 0:02:58]} 5. Bb5 {[%clk 0:02:57]}  Bg7 {[%clk 0:02:54]} 6. Bxc6+ {[%clk 0:02:54]}  bxc6 {[%clk 0:02:54]} 7. O-O {[%clk 0:02:54]}  e6 {[%clk 0:02:53]} 8. d3 {[%clk 0:02:48]}  Ne7 {[%clk 0:02:52]} 9. Qe1 {[%clk 0:02:47]}  O-O {[%clk 0:02:51]} 10. Bd2 {[%clk 0:02:47]}  f5 {[%clk 0:02:47]} 11. Rd1 {[%clk 0:02:46]}  Qc7 {[%clk 0:02:44]} 12. b3 {[%clk 0:02:45]}  Bd7 {[%clk 0:02:39]} 13. e5 {[%clk 0:02:45]}  Nd5 {[%clk 0:02:36]} 14. Na4 {[%clk 0:02:42]}  Rae8 {[%clk 0:02:27]} 15. c4 {[%clk 0:02:32]}  Nb4 {[%clk 0:02:25]} 16. exd6 {[%clk 0:02:23]}  Qxd6 {[%clk 0:02:23]} 17. Be3 {[%clk 0:02:22]}  Nc2 {[%clk 0:01:17]} 18. Qf2 {[%clk 0:02:21]}  Nxe3 {[%clk 0:01:16]} 19. Qxe3 {[%clk 0:02:22]}  Bd4 {[%clk 0:01:15]} 20. Nxd4 {[%clk 0:02:20]}  cxd4 {[%clk 0:01:16]} 21. Qe5 {[%clk 0:02:20]}  Qxe5 {[%clk 0:01:08]} 22. fxe5 {[%clk 0:02:21]}  g5 {[%clk 0:01:01]} 23. Nc5 {[%clk 0:02:21]}  Bc8 {[%clk 0:01:01]} 24. b4 {[%clk 0:02:10]}  Re7 {[%clk 0:01:00]} 25. a4 {[%clk 0:02:09]}  Rc7 {[%clk 0:00:59]} 26. Rf3 {[%clk 0:02:04]}  h5 {[%clk 0:00:58]} 27. h4 {[%clk 0:02:02]}  g4 {[%clk 0:00:56]} 28. Rf4 {[%clk 0:02:02]}  Rd8 {[%clk 0:00:54]} 29. g3 {[%clk 0:02:01]}  Kf7 {[%clk 0:00:53]} 30. Ra1 {[%clk 0:02:00]}  Ke7 {[%clk 0:00:46]} 31. Nb3 {[%clk 0:02:00]}  Rb7 {[%clk 0:00:43]} 32. Nxd4 {[%clk 0:02:00]}  Bd7 {[%clk 0:00:43]} 33. b5 {[%clk 0:01:59]}  cxb5 {[%clk 0:00:42]} 34. axb5 {[%clk 0:02:00]}  Rc8 {[%clk 0:00:40]} 35. Ra6 {[%clk 0:01:59]}  Rc5 {[%clk 0:00:39]} 36. Rf1 {[%clk 0:01:41]}  Rxe5 {[%clk 0:00:38]} 37. Kf2 {[%clk 0:01:42]}  Rc5 {[%clk 0:00:37]} 38. Rfa1 {[%clk 0:01:41]}  e5 {[%clk 0:00:37]} 39. Ne2 {[%clk 0:01:34]}  Rcc7 {[%clk 0:00:35]} 40. Nc3 {[%clk 0:01:33]}  Be6 {[%clk 0:00:34]} 41. Ke3 {[%clk 0:01:31]}  Rd7 {[%clk 0:00:32]} 42. c5 {[%clk 0:01:28]}  f4+ {[%clk 0:00:28]} 43. gxf4 {[%clk 0:01:26]}  exf4+ {[%clk 0:00:28]} 44. Kxf4 {[%clk 0:01:26]}  Rxd3 {[%clk 0:00:28]} 45. Ne4 {[%clk 0:01:22]}  Rf3+ {[%clk 0:00:26]} 46. Kg5 {[%clk 0:01:09]}  Rxb5 {[%clk 0:00:25]} 47. Rxa7+ {[%clk 0:01:09]}  Bd7 {[%clk 0:00:26]} 48. Rd1 {[%clk 0:01:02]}  Rf5+ {[%clk 0:00:23]} 49. Kg6 {[%clk 0:01:02]}  Rf4 {[%clk 0:00:06]} 50. Rdxd7+ {[%clk 0:01:00]}  Ke6 {[%clk 0:00:06]} 51. Rd6+ {[%clk 0:01:00]}  Ke5 {[%clk 0:00:07]} 52. Re7# {[%clk 0:01:01]} 1-0


[Site "https://www.chess.com"]

[Event "Titled Tuesday Blitz February 14 Early 2023"]
[White "Vaibhav Jayant Raut"]
[Black "Kokoszczynski, Jan"]
[WhiteFideId "5089034"]
[BlackFideId "1174460"]
[WhiteElo "2237"]
[BlackElo "2247"]
[Result "0-1"]
[Round "08"]
[TimeControl "180+2"]
[Date "2023.02.14"]
[WhiteClock "0:01:29"]
[BlackClock "0:00:17"]

1. e4 {[%clk 0:03:00]}  c6 {[%clk 0:03:00]} 2. Nc3 {[%clk 0:03:00]}  d5 {[%clk 0:03:00]} 3. Nf3 {[%clk 0:03:01]}  dxe4 {[%clk 0:02:56]} 4. Nxe4 {[%clk 0:03:01]}  Nf6 {[%clk 0:02:56]} 5. Qe2 {[%clk 0:03:02]}  Nxe4 {[%clk 0:02:57]} 6. Qxe4 {[%clk 0:03:02]}  Be6 {[%clk 0:02:57]} 7. d4 {[%clk 0:03:01]}  Nd7 {[%clk 0:02:53]} 8. Bd3 {[%clk 0:03:00]}  Nf6 {[%clk 0:02:52]} 9. Qe2 {[%clk 0:03:00]}  Bg4 {[%clk 0:02:50]} 10. c3 {[%clk 0:03:00]}  e6 {[%clk 0:02:50]} 11. h3 {[%clk 0:03:00]}  Bh5 {[%clk 0:02:50]} 12. O-O {[%clk 0:03:01]}  Be7 {[%clk 0:02:49]} 13. Bf4 {[%clk 0:03:01]}  O-O {[%clk 0:02:48]} 14. Rfe1 {[%clk 0:03:01]}  Nd5 {[%clk 0:02:37]} 15. Be5 {[%clk 0:03:01]}  Bd6 {[%clk 0:02:28]} 16. Bxd6 {[%clk 0:02:58]}  Qxd6 {[%clk 0:02:25]} 17. Qe5 {[%clk 0:02:58]}  Qxe5 {[%clk 0:02:21]} 18. Nxe5 {[%clk 0:02:59]}  Rad8 {[%clk 0:02:17]} 19. a4 {[%clk 0:02:52]}  Bg6 {[%clk 0:02:12]} 20. Bxg6 {[%clk 0:02:49]}  hxg6 {[%clk 0:02:11]} 21. a5 {[%clk 0:02:50]}  Nc7 {[%clk 0:01:37]} 22. a6 {[%clk 0:02:44]}  Nxa6 {[%clk 0:01:08]} 23. Nxc6 {[%clk 0:02:42]}  Rd6 {[%clk 0:01:06]} 24. Ne5 {[%clk 0:02:17]}  Rc8 {[%clk 0:01:00]} 25. Re3 {[%clk 0:02:14]}  Rb6 {[%clk 0:00:57]} 26. Ra2 {[%clk 0:02:14]}  Nb8 {[%clk 0:00:50]} 27. Nd7 {[%clk 0:02:04]}  Nxd7 {[%clk 0:00:49]} 28. Re2 {[%clk 0:01:54]}  a6 {[%clk 0:00:49]} 29. Ra5 {[%clk 0:01:51]}  Nf6 {[%clk 0:00:48]} 30. Kf1 {[%clk 0:01:46]}  Rb5 {[%clk 0:00:45]} 31. Ra1 {[%clk 0:01:45]}  g5 {[%clk 0:00:45]} 32. Rc1 {[%clk 0:01:44]}  Rd5 {[%clk 0:00:40]} 33. Rd1 {[%clk 0:01:44]}  b5 {[%clk 0:00:40]} 34. Ra1 {[%clk 0:01:43]}  Rc6 {[%clk 0:00:40]} 35. g3 {[%clk 0:01:43]}  b4 {[%clk 0:00:38]} 36. Re3 {[%clk 0:01:43]}  Rb5 {[%clk 0:00:33]} 37. Kg2 {[%clk 0:01:40]}  bxc3 {[%clk 0:00:31]} 38. Rxc3 {[%clk 0:01:41]}  Rd6 {[%clk 0:00:21]} 39. Rc8+ {[%clk 0:01:39]}  Kh7 {[%clk 0:00:22]} 40. Rc7 {[%clk 0:01:39]}  Kg6 {[%clk 0:00:21]} 41. Ra2 {[%clk 0:01:37]}  Rxd4 {[%clk 0:00:19]} 42. Rxa6 {[%clk 0:01:33]}  Rd7 {[%clk 0:00:16]} 43. Rc2 {[%clk 0:01:33]}  Rdb7 {[%clk 0:00:16]} 44. Ra2 {[%clk 0:01:33]}  Nd5 {[%clk 0:00:16]} 45. Re2 {[%clk 0:01:32]}  Rb3 {[%clk 0:00:16]} 46. h4 {[%clk 0:01:25]}  gxh4 {[%clk 0:00:16]} 47. Ra4 {[%clk 0:01:25]}  hxg3 {[%clk 0:00:15]} 48. Rg4+ {[%clk 0:01:25]}  Kf6 {[%clk 0:00:14]} 49. Rxg3 {[%clk 0:01:25]}  Rxg3+ {[%clk 0:00:13]} 50. Kxg3 {[%clk 0:01:25]}  Rb3+ {[%clk 0:00:13]} 51. Kg2 {[%clk 0:01:26]}  g5 {[%clk 0:00:14]} 52. Rc2 {[%clk 0:01:25]}  g4 {[%clk 0:00:12]} 53. Kh2 {[%clk 0:01:25]}  Kg5 {[%clk 0:00:12]} 54. Kg2 {[%clk 0:01:26]}  f5 {[%clk 0:00:12]} 55. Kg1 {[%clk 0:01:26]}  Kf4 {[%clk 0:00:12]} 56. Kg2 {[%clk 0:01:26]}  Ke5 {[%clk 0:00:11]} 57. Re2+ {[%clk 0:01:27]}  Kf6 {[%clk 0:00:12]} 58. Rc2 {[%clk 0:01:28]}  Nf4+ {[%clk 0:00:12]} 59. Kg1 {[%clk 0:01:28]}  Nd3 {[%clk 0:00:13]} 60. Rd2 {[%clk 0:01:27]}  Nxb2 {[%clk 0:00:13]} 61. Rd8 {[%clk 0:01:28]}  Nc4 {[%clk 0:00:13]} 62. Rf8+ {[%clk 0:01:29]}  Ke5 {[%clk 0:00:14]} 63. Rc8 {[%clk 0:01:30]}  Nd6 {[%clk 0:00:14]} 64. Rc1 {[%clk 0:01:30]}  Ne4 {[%clk 0:00:13]} 65. Re1 {[%clk 0:01:31]}  Kf4 {[%clk 0:00:14]} 66. Ra1 {[%clk 0:01:31]}  e5 {[%clk 0:00:14]} 67. Ra8 {[%clk 0:01:31]}  Rb2 {[%clk 0:00:15]} 68. Ra1 {[%clk 0:01:31]}  Rxf2 {[%clk 0:00:15]} 69. Kh1 {[%clk 0:01:29]}  Rb2 {[%clk 0:00:15]} 70. Rf1+ {[%clk 0:01:29]}  Kg5 {[%clk 0:00:15]} 71. Ra1 {[%clk 0:01:29]}  g3 {[%clk 0:00:15]} 72. Ra8 {[%clk 0:01:29]}  Nf2+ {[%clk 0:00:16]} 73. Kg2 {[%clk 0:01:29]}  Nh3+ {[%clk 0:00:16]} 74. Kxh3 {[%clk 0:01:29]}  f4 {[%clk 0:00:16]} 75. Rg8+ {[%clk 0:01:28]}  Kf5 {[%clk 0:00:17]} 76. Rf8+ {[%clk 0:01:28]}  Ke4 {[%clk 0:00:17]} 77. Ra8 {[%clk 0:01:28]}  Rb4 {[%clk 0:00:16]} 78. Kg4 {[%clk 0:01:29]}  g2 {[%clk 0:00:17]} 79. Ra1 {[%clk 0:01:29]}  Rb3 {[%clk 0:00:17]} 80. Kh4 {[%clk 0:01:29]}  Rg3 {[%clk 0:00:17]} 81. Rg1 {[%clk 0:01:29]}  Kf3 {[%clk 0:00:17]} 0-1


[Site "https://www.chess.com"]

[Event "Titled Tuesday Blitz February 14 Early 2023"]
[White "Csonka, Balazs"]
[Black "Cella, Glaucio Dalla Cortt"]
[WhiteFideId "742910"]
[BlackFideId "2119455"]
[WhiteElo "2496"]
[BlackElo "1894"]
[Result "1/2-1/2"]
[Round "08"]
[TimeControl "180+2"]
[Date "2023.02.14"]
[WhiteClock "0:00:12"]
[BlackClock "0:02:26"]

1. e4 {[%clk 0:03:00]}  c5 {[%clk 0:03:00]} 2. Nf3 {[%clk 0:03:00]}  e6 {[%clk 0:03:01]} 3. d4 {[%clk 0:02:57]}  cxd4 {[%clk 0:03:02]} 4. Nxd4 {[%clk 0:02:57]}  Nf6 {[%clk 0:03:01]} 5. Nc3 {[%clk 0:02:57]}  Bb4 {[%clk 0:03:01]} 6. e5 {[%clk 0:02:52]}  Nd5 {[%clk 0:02:59]} 7. Qg4 {[%clk 0:02:38]}  g6 {[%clk 0:03:00]} 8. Qg3 {[%clk 0:02:18]}  Qa5 {[%clk 0:02:54]} 9. Bd2 {[%clk 0:02:11]}  Nxc3 {[%clk 0:02:54]} 10. bxc3 {[%clk 0:02:10]}  Be7 {[%clk 0:02:54]} 11. h4 {[%clk 0:01:31]}  Nc6 {[%clk 0:02:54]} 12. Nb5 {[%clk 0:01:17]}  a6 {[%clk 0:02:54]} 13. c4 {[%clk 0:01:12]}  Nb4 {[%clk 0:02:33]} 14. Nd6+ {[%clk 0:00:53]}  Bxd6 {[%clk 0:02:33]} 15. exd6 {[%clk 0:00:54]}  Nxc2+ {[%clk 0:02:33]} 16. Kd1 {[%clk 0:00:51]}  Qa4 {[%clk 0:02:32]} 17. Rc1 {[%clk 0:00:20]}  Nd4+ {[%clk 0:02:30]} 18. Ke1 {[%clk 0:00:20]}  Nc2+ {[%clk 0:02:28]} 19. Kd1 {[%clk 0:00:18]}  Nd4+ {[%clk 0:02:29]} 20. Ke1 {[%clk 0:00:18]}  Nc2+ {[%clk 0:02:29]} 21. Ke2 {[%clk 0:00:14]}  Nd4+ {[%clk 0:02:26]} 22. Ke1 {[%clk 0:00:12]} 1/2-1/2


[Site "https://www.chess.com"]

[Event "Titled Tuesday Blitz February 14 Early 2023"]
[White "Jakubowski, Krzysztof"]
[Black "Bochnicka, Vladimir"]
[WhiteFideId "1112848"]
[BlackFideId "14943450"]
[WhiteElo "2486"]
[BlackElo "2327"]
[Result "0-1"]
[Round "08"]
[TimeControl "180+2"]
[Date "2023.02.14"]
[WhiteClock "0:00:01"]
[BlackClock "0:00:04"]

1. e4 {[%clk 0:02:55]}  c5 {[%clk 0:02:59]} 2. Nf3 {[%clk 0:02:52]}  Nc6 {[%clk 0:03:00]} 3. d4 {[%clk 0:02:52]}  cxd4 {[%clk 0:03:01]} 4. Nxd4 {[%clk 0:02:51]}  e5 {[%clk 0:03:01]} 5. Nb5 {[%clk 0:02:50]}  d6 {[%clk 0:03:02]} 6. N1c3 {[%clk 0:02:49]}  a6 {[%clk 0:03:02]} 7. Na3 {[%clk 0:02:49]}  Be7 {[%clk 0:03:03]} 8. Nc4 {[%clk 0:02:47]}  b5 {[%clk 0:03:02]} 9. Ne3 {[%clk 0:02:47]}  Nf6 {[%clk 0:03:03]} 10. g3 {[%clk 0:02:43]}  O-O {[%clk 0:03:03]} 11. Bg2 {[%clk 0:02:43]}  Rb8 {[%clk 0:03:03]} 12. O-O {[%clk 0:02:42]}  Be6 {[%clk 0:03:01]} 13. a3 {[%clk 0:02:37]}  Nd7 {[%clk 0:02:55]} 14. Ncd5 {[%clk 0:02:17]}  a5 {[%clk 0:02:51]} 15. h4 {[%clk 0:02:09]}  Nc5 {[%clk 0:02:38]} 16. b4 {[%clk 0:02:00]}  axb4 {[%clk 0:02:35]} 17. axb4 {[%clk 0:02:01]}  Na4 {[%clk 0:02:25]} 18. c4 {[%clk 0:01:55]}  Nb6 {[%clk 0:02:12]} 19. cxb5 {[%clk 0:01:45]}  Nd4 {[%clk 0:02:11]} 20. Bb2 {[%clk 0:01:41]}  Nxb5 {[%clk 0:02:08]} 21. Qd3 {[%clk 0:01:39]}  Nxd5 {[%clk 0:02:05]} 22. Nxd5 {[%clk 0:01:39]}  Nc7 {[%clk 0:01:45]} 23. Nxe7+ {[%clk 0:01:26]}  Qxe7 {[%clk 0:01:45]} 24. Bc3 {[%clk 0:01:26]}  Rfc8 {[%clk 0:01:42]} 25. Ra5 {[%clk 0:01:17]}  Qd7 {[%clk 0:01:28]} 26. Bd2 {[%clk 0:00:53]}  h6 {[%clk 0:01:25]} 27. Rc1 {[%clk 0:00:52]}  Na8 {[%clk 0:01:05]} 28. Rxc8+ {[%clk 0:00:49]}  Rxc8 {[%clk 0:01:04]} 29. Ra6 {[%clk 0:00:48]}  Rd8 {[%clk 0:00:35]} 30. Be3 {[%clk 0:00:37]}  Nc7 {[%clk 0:00:35]} 31. Ra7 {[%clk 0:00:33]}  Qb5 {[%clk 0:00:35]} 32. Bf1 {[%clk 0:00:22]}  Qb8 {[%clk 0:00:27]} 33. Qc2 {[%clk 0:00:15]}  Nb5 {[%clk 0:00:24]} 34. Ra5 {[%clk 0:00:11]}  Nd4 {[%clk 0:00:19]} 35. Bxd4 {[%clk 0:00:10]}  exd4 {[%clk 0:00:20]} 36. Qd2 {[%clk 0:00:11]}  Qb6 {[%clk 0:00:15]} 37. Ra6 {[%clk 0:00:11]}  Qb7 {[%clk 0:00:13]} 38. Qxd4 {[%clk 0:00:11]}  Rc8 {[%clk 0:00:08]} 39. Ra7 {[%clk 0:00:08]}  Qb8 {[%clk 0:00:06]} 40. Ra1 {[%clk 0:00:08]}  Rc2 {[%clk 0:00:05]} 41. Rb1 {[%clk 0:00:08]}  Qc7 {[%clk 0:00:05]} 42. b5 {[%clk 0:00:07]}  Rc1 {[%clk 0:00:03]} 43. Rxc1 {[%clk 0:00:07]}  Qxc1 {[%clk 0:00:04]} 44. b6 {[%clk 0:00:07]}  Qb1 {[%clk 0:00:04]} 45. Qxd6 {[%clk 0:00:06]}  Bc4 {[%clk 0:00:04]} 46. Kh2 {[%clk 0:00:04]}  Qxf1 {[%clk 0:00:04]} 47. Qc5 {[%clk 0:00:04]}  Ba6 {[%clk 0:00:04]} 48. e5 {[%clk 0:00:02]}  Qe2 {[%clk 0:00:04]} 49. Kg1 {[%clk 0:00:02]}  Qf1+ {[%clk 0:00:03]} 50. Kh2 {[%clk 0:00:01]}  Bb7 {[%clk 0:00:04]} 0-1


[Site "https://www.chess.com"]

[Event "Titled Tuesday Blitz February 14 Early 2023"]
[White "Domingo Nunez, Ruben"]
[Black "Sowul, Bartosz"]
[WhiteFideId "22245570"]
[BlackFideId "1137590"]
[WhiteElo "2416"]
[BlackElo "2269"]
[Result "1-0"]
[Round "08"]
[TimeControl "180+2"]
[Date "2023.02.14"]
[WhiteClock "0:00:32"]
[BlackClock "0:00:03"]

1. b3 {[%clk 0:03:00]}  e5 {[%clk 0:02:58]} 2. Bb2 {[%clk 0:02:59]}  Nc6 {[%clk 0:02:59]} 3. e3 {[%clk 0:02:59]}  Nf6 {[%clk 0:02:59]} 4. Bb5 {[%clk 0:03:00]}  Bd6 {[%clk 0:02:59]} 5. Nf3 {[%clk 0:03:00]}  e4 {[%clk 0:02:57]} 6. Bxc6 {[%clk 0:02:59]}  dxc6 {[%clk 0:02:57]} 7. Ne5 {[%clk 0:03:00]}  Qe7 {[%clk 0:02:49]} 8. Nc4 {[%clk 0:02:49]}  O-O {[%clk 0:02:25]} 9. Nxd6 {[%clk 0:02:44]}  cxd6 {[%clk 0:02:26]} 10. O-O {[%clk 0:02:45]}  Ng4 {[%clk 0:02:22]} 11. h3 {[%clk 0:02:34]}  Ne5 {[%clk 0:02:22]} 12. Nc3 {[%clk 0:02:25]}  Bxh3 {[%clk 0:02:09]} 13. Nxe4 {[%clk 0:02:15]}  Bg4 {[%clk 0:01:50]} 14. f3 {[%clk 0:02:14]}  f5 {[%clk 0:01:31]} 15. Ng3 {[%clk 0:01:47]}  Qh4 {[%clk 0:01:15]} 16. Qe1 {[%clk 0:01:31]}  Bh5 {[%clk 0:00:33]} 17. Ne2 {[%clk 0:01:30]}  Qe7 {[%clk 0:00:31]} 18. Qg3 {[%clk 0:01:28]}  Rf6 {[%clk 0:00:30]} 19. Nf4 {[%clk 0:01:28]}  Bf7 {[%clk 0:00:29]} 20. Rae1 {[%clk 0:01:26]}  Rh6 {[%clk 0:00:28]} 21. e4 {[%clk 0:01:21]}  g5 {[%clk 0:00:26]} 22. exf5 {[%clk 0:01:14]}  Kf8 {[%clk 0:00:16]} 23. Nd3 {[%clk 0:01:04]}  Re8 {[%clk 0:00:15]} 24. Nxe5 {[%clk 0:00:58]}  dxe5 {[%clk 0:00:15]} 25. Rxe5 {[%clk 0:00:58]}  Qd7 {[%clk 0:00:12]} 26. Qxg5 {[%clk 0:00:54]}  Qd6 {[%clk 0:00:10]} 27. Ba3 {[%clk 0:00:31]}  Qxa3 {[%clk 0:00:02]} 28. Qxh6+ {[%clk 0:00:32]}  Kg8 {[%clk 0:00:03]} 29. f6 {[%clk 0:00:32]} 1-0


[Site "https://www.chess.com"]

[Event "Titled Tuesday Blitz February 14 Early 2023"]
[White "Begunov, Konstantin"]
[Black "Tologon tegin, Semetei"]
[WhiteFideId "4118510"]
[BlackFideId "13800574"]
[WhiteElo "2325"]
[BlackElo "2372"]
[Result "0-1"]
[Round "08"]
[TimeControl "180+2"]
[Date "2023.02.14"]
[WhiteClock "0:00:16"]
[BlackClock "0:00:53"]

1. d4 {[%clk 0:03:00]}  Nf6 {[%clk 0:02:56]} 2. c4 {[%clk 0:03:00]}  e6 {[%clk 0:02:55]} 3. Nf3 {[%clk 0:03:00]}  d5 {[%clk 0:02:56]} 4. Nc3 {[%clk 0:03:00]}  Nbd7 {[%clk 0:02:54]} 5. cxd5 {[%clk 0:02:59]}  exd5 {[%clk 0:02:54]} 6. Bg5 {[%clk 0:03:00]}  Be7 {[%clk 0:02:54]} 7. e3 {[%clk 0:03:00]}  c6 {[%clk 0:02:53]} 8. Bd3 {[%clk 0:03:00]}  Ne4 {[%clk 0:02:46]} 9. Bf4 {[%clk 0:02:55]}  Ndf6 {[%clk 0:02:44]} 10. O-O {[%clk 0:02:29]}  Bg4 {[%clk 0:02:36]} 11. Qc2 {[%clk 0:02:21]}  Bxf3 {[%clk 0:02:34]} 12. gxf3 {[%clk 0:02:20]}  Nd6 {[%clk 0:02:32]} 13. e4 {[%clk 0:02:11]}  Nh5 {[%clk 0:02:10]} 14. Be5 {[%clk 0:01:57]}  dxe4 {[%clk 0:01:48]} 15. fxe4 {[%clk 0:01:57]}  Bf6 {[%clk 0:01:40]} 16. Qe2 {[%clk 0:01:42]}  Bxe5 {[%clk 0:01:38]} 17. dxe5 {[%clk 0:01:42]}  Nf4 {[%clk 0:01:35]} 18. Qg4 {[%clk 0:01:21]}  Nxd3 {[%clk 0:01:34]} 19. Qxg7 {[%clk 0:01:21]}  Rf8 {[%clk 0:01:21]} 20. Rad1 {[%clk 0:01:09]}  Nc4 {[%clk 0:01:20]} 21. b3 {[%clk 0:00:31]}  Ncxe5 {[%clk 0:01:17]} 22. f4 {[%clk 0:00:30]}  Qd4+ {[%clk 0:01:16]} 23. Kh1 {[%clk 0:00:25]}  O-O-O {[%clk 0:01:06]} 24. fxe5 {[%clk 0:00:15]}  Qxc3 {[%clk 0:01:02]} 25. e6 {[%clk 0:00:16]}  Nf2+ {[%clk 0:00:58]} 26. Kg2 {[%clk 0:00:15]}  Nxd1 {[%clk 0:00:54]} 27. e7 {[%clk 0:00:16]}  Qxg7+ {[%clk 0:00:53]} 0-1


[Site "https://www.chess.com"]

[Event "Titled Tuesday Blitz February 14 Early 2023"]
[White "Szente Varga, Fruzsina"]
[Black "Maksimenko, Viktor"]
[WhiteFideId "712264"]
[BlackFideId "13710478"]
[WhiteElo "2075"]
[BlackElo "2196"]
[Result "0-1"]
[Round "08"]
[TimeControl "180+2"]
[Date "2023.02.14"]
[WhiteClock "0:00:09"]
[BlackClock "0:01:29"]

1. e4 {[%clk 0:03:00]}  e5 {[%clk 0:02:57]} 2. Nf3 {[%clk 0:03:00]}  Nc6 {[%clk 0:02:57]} 3. Bb5 {[%clk 0:02:57]}  a6 {[%clk 0:02:57]} 4. Ba4 {[%clk 0:02:57]}  Nf6 {[%clk 0:02:57]} 5. Qe2 {[%clk 0:02:57]}  b5 {[%clk 0:02:57]} 6. Bb3 {[%clk 0:02:57]}  Bc5 {[%clk 0:02:57]} 7. c3 {[%clk 0:02:57]}  d6 {[%clk 0:02:55]} 8. O-O {[%clk 0:02:57]}  Bb6 {[%clk 0:02:50]} 9. Rd1 {[%clk 0:02:56]}  O-O {[%clk 0:02:48]} 10. d3 {[%clk 0:02:55]}  h6 {[%clk 0:02:48]} 11. Nbd2 {[%clk 0:02:55]}  Ne7 {[%clk 0:02:47]} 12. Nf1 {[%clk 0:02:33]}  Ng6 {[%clk 0:02:45]} 13. Be3 {[%clk 0:02:28]}  Rb8 {[%clk 0:02:43]} 14. Bc2 {[%clk 0:01:56]}  Bd7 {[%clk 0:02:39]} 15. d4 {[%clk 0:01:45]}  Qe8 {[%clk 0:02:35]} 16. Ng3 {[%clk 0:01:43]}  c5 {[%clk 0:02:27]} 17. dxc5 {[%clk 0:01:36]}  dxc5 {[%clk 0:02:28]} 18. Rd6 {[%clk 0:01:20]}  Qe7 {[%clk 0:02:23]} 19. Rad1 {[%clk 0:01:20]}  Rfd8 {[%clk 0:02:22]} 20. h3 {[%clk 0:01:13]}  Be6 {[%clk 0:02:14]} 21. Rxd8+ {[%clk 0:01:10]}  Rxd8 {[%clk 0:02:14]} 22. Rxd8+ {[%clk 0:01:11]}  Qxd8 {[%clk 0:02:14]} 23. b3 {[%clk 0:01:04]}  c4 {[%clk 0:02:13]} 24. Bxb6 {[%clk 0:00:57]}  Qxb6 {[%clk 0:02:14]} 25. Nf5 {[%clk 0:00:42]}  Qa5 {[%clk 0:02:10]} 26. bxc4 {[%clk 0:00:21]}  Bxc4 {[%clk 0:02:11]} 27. Qd2 {[%clk 0:00:21]}  Be6 {[%clk 0:01:59]} 28. N3h4 {[%clk 0:00:17]}  Nxh4 {[%clk 0:01:56]} 29. Nxh4 {[%clk 0:00:18]}  Qxa2 {[%clk 0:01:56]} 30. Qd3 {[%clk 0:00:13]}  Qc4 {[%clk 0:01:53]} 31. Qd8+ {[%clk 0:00:13]}  Kh7 {[%clk 0:01:53]} 32. Qa5 {[%clk 0:00:13]}  Qc6 {[%clk 0:01:43]} 33. Nf5 {[%clk 0:00:12]}  Bxf5 {[%clk 0:01:42]} 34. exf5 {[%clk 0:00:13]}  Qc5 {[%clk 0:01:40]} 35. Qxa6 {[%clk 0:00:11]}  Qxc3 {[%clk 0:01:39]} 36. Qa2 {[%clk 0:00:10]}  b4 {[%clk 0:01:36]} 37. Qb3 {[%clk 0:00:09]}  Qe1+ {[%clk 0:01:35]} 38. Kh2 {[%clk 0:00:09]}  Qxf2 {[%clk 0:01:34]} 39. Bd3 {[%clk 0:00:09]}  e4 {[%clk 0:01:33]} 40. Bb1 {[%clk 0:00:09]}  Qf4+ {[%clk 0:01:30]} 41. Kh1 {[%clk 0:00:09]}  e3 {[%clk 0:01:28]} 42. Qxf7 {[%clk 0:00:09]}  Qf1+ {[%clk 0:01:28]} 43. Kh2 {[%clk 0:00:09]}  Qxb1 {[%clk 0:01:29]} 44. Qg6+ {[%clk 0:00:09]}  Kh8 {[%clk 0:01:29]} 0-1


[Site "https://www.chess.com"]

[Event "Titled Tuesday Blitz February 14 Early 2023"]
[White "Koridze, Lile"]
[Black "Sharapov, Evgeny"]
[WhiteFideId "13612514"]
[BlackFideId "14103133"]
[WhiteElo "2191"]
[BlackElo "2375"]
[Result "1/2-1/2"]
[Round "08"]
[TimeControl "180+2"]
[Date "2023.02.14"]
[WhiteClock "0:00:49"]
[BlackClock "0:00:27"]

1. d4 {[%clk 0:03:00]}  Nf6 {[%clk 0:02:59]} 2. c4 {[%clk 0:03:00]}  e6 {[%clk 0:02:59]} 3. Nf3 {[%clk 0:03:00]}  Bb4+ {[%clk 0:02:59]} 4. Bd2 {[%clk 0:02:58]}  c5 {[%clk 0:02:58]} 5. g3 {[%clk 0:02:58]}  O-O {[%clk 0:02:56]} 6. Bg2 {[%clk 0:02:57]}  Bxd2+ {[%clk 0:02:50]} 7. Qxd2 {[%clk 0:02:55]}  d6 {[%clk 0:02:49]} 8. O-O {[%clk 0:02:54]}  Nc6 {[%clk 0:02:49]} 9. Nc3 {[%clk 0:02:51]}  e5 {[%clk 0:02:47]} 10. e3 {[%clk 0:02:38]}  Bg4 {[%clk 0:02:45]} 11. dxe5 {[%clk 0:02:26]}  dxe5 {[%clk 0:02:44]} 12. Qc2 {[%clk 0:02:26]}  Qe7 {[%clk 0:02:27]} 13. a3 {[%clk 0:02:25]}  Rad8 {[%clk 0:02:26]} 14. h3 {[%clk 0:02:24]}  Be6 {[%clk 0:02:20]} 15. Ng5 {[%clk 0:02:14]}  Bxc4 {[%clk 0:01:55]} 16. Rfd1 {[%clk 0:02:13]}  h6 {[%clk 0:01:52]} 17. Nge4 {[%clk 0:02:02]}  Nxe4 {[%clk 0:01:44]} 18. Nxe4 {[%clk 0:02:01]}  Na5 {[%clk 0:01:36]} 19. Qc3 {[%clk 0:01:40]}  Rxd1+ {[%clk 0:01:23]} 20. Rxd1 {[%clk 0:01:39]}  Bb3 {[%clk 0:01:23]} 21. Rc1 {[%clk 0:01:29]}  b6 {[%clk 0:01:23]} 22. Nd2 {[%clk 0:01:20]}  Qe6 {[%clk 0:01:14]} 23. Ne4 {[%clk 0:01:14]}  Rd8 {[%clk 0:01:10]} 24. Nxc5 {[%clk 0:01:11]}  bxc5 {[%clk 0:01:01]} 25. Qxa5 {[%clk 0:01:11]}  Qb6 {[%clk 0:00:44]} 26. Qxc5 {[%clk 0:00:58]}  Qxc5 {[%clk 0:00:44]} 27. Rxc5 {[%clk 0:00:58]}  Rd1+ {[%clk 0:00:41]} 28. Kh2 {[%clk 0:00:58]}  Rd2 {[%clk 0:00:40]} 29. Rxe5 {[%clk 0:00:54]}  Rxf2 {[%clk 0:00:36]} 30. Kg1 {[%clk 0:00:54]}  Rxb2 {[%clk 0:00:31]} 31. Ra5 {[%clk 0:00:49]}  Rb1+ {[%clk 0:00:27]} 32. Kf2 {[%clk 0:00:48]}  Rb2+ {[%clk 0:00:27]} 33. Kg1 {[%clk 0:00:48]}  Rb1+ {[%clk 0:00:27]} 34. Kf2 {[%clk 0:00:48]}  Rb2+ {[%clk 0:00:27]} 35. Kg1 {[%clk 0:00:49]} 1/2-1/2


[Site "https://www.chess.com"]